fUST/lending_fUST_20240327
["ID","MTS","AMOUNT","RATE_DAILY","PERIOD"]
[320622586,1711476643711,-453.275703,0.00018011,2]
[320622589,1711476643721,-360.08182677,0.00018891,2]
[320623911,1711476800236,167.709251,0.00023288,120]
[320623915,1711477158043,226.637851,0.00017741,2]
[320623918,1711477413512,250.0,0.00017741,2]
[320623919,1711477417685,-12000.0,0.00017858,2]
[320623920,1711477417811,-12000.0,0.00017858,2]
[320623921,1711477417918,-900.0,0.00017858,2]
[320623929,1711477639244,226.637851,0.00017858,2]
[320624099,1711477838684,-204.86050653,0.00018015,2]
[320624100,1711477838696,-1574.04740099,0.00018015,2]
[320624101,1711477838708,-155.021703,0.00018016,2]
[320624102,1711477838719,-2000.0,0.00018277,2]
[320624103,1711477838731,-3600.53200453,0.000189,2]
[320624104,1711477838744,-352.75464936,0.00018976,2]
[320624105,1711477838756,-1372.12612355,0.00018998,2]
[320624106,1711477838768,-546.16320346,0.00018998,2]
[320624107,1711477838780,-302.52792033,0.00018998,2]
[320624108,1711477838794,-3861.14428883,0.00018998,2]
[320624109,1711477838806,-593.77021929,0.00018998,2]
[320624110,1711477838818,-285.05702211,0.00018998,2]
[320624111,1711477838829,-215.79813474,0.00018999,2]
[320624112,1711477838841,-2605.4070805,0.00018999,2]
[320624113,1711477838853,-24873.07579596,0.00019,2]
[320624114,1711477838868,-4879.50594706,0.00019,2]
[320624115,1711477838879,-352.75464932,0.00019002,2]
[320624116,1711477838891,-352.75464932,0.00019027,2]
[320624117,1711477838903,-352.75464932,0.00019053,2]
[320624118,1711477838914,-1726.41377257,0.00019076,2]
[320624563,1711477843800,-228.73751346,0.00019076,2]
[320624565,1711477843810,-352.75464932,0.00019078,2]
[320624567,1711477843818,-4256.02656488,0.00019078,2]
[320625124,1711478224060,151.01812217,0.00019632,30]
[320625125,1711478334186,449.02,0.00022222,30]
[320625128,1711478505421,1259.5406353,0.0001783,2]
[320625129,1711478615106,1275.5550971,0.0001783,2]
[320625268,1711479031888,-204.86050653,0.0001842,2]
[320625270,1711479031897,-155.01860223,0.0001842,2]
[320625272,1711479031907,-11148.91776596,0.00018421,2]
[320625274,1711479031916,-2000.0,0.00018422,2]
[320625276,1711479031925,-173.74775997,0.00018977,2]
[320625278,1711479031934,-174.02744117,0.00018978,2]
[320625280,1711479031943,-2604.83304898,0.00019075,2]
[320625282,1711479031953,-302.68806149,0.00019075,2]
[320625284,1711479031962,-1539.79390352,0.00019075,2]
[320625286,1711479031972,-242.38972345,0.00019075,2]
[320625288,1711479031981,-1728.39352816,0.00019075,2]
[320625290,1711479031991,-484.06641613,0.00019076,2]
[320625292,1711479032001,-525.40534058,0.00019077,2]
[320625294,1711479032010,-29752.58174302,0.00019077,2]
[320625296,1711479032020,-17303.39379081,0.00019078,2]
[320625298,1711479032029,-480.35677153,0.00019174,2]
[320625300,1711479032038,-155.51886579,0.00019174,2]
[320625301,1711479032047,-156.39858452,0.00019175,2]
[320625303,1711479032056,-746.90009529,0.00019175,2]
[320625305,1711479032068,-554.27113381,0.00019175,2]
[320625307,1711479032079,-180.18452548,0.00019175,2]
[320625308,1711479032089,-672.18434071,0.00019176,2]
[320625310,1711479032100,-1.6594251,0.00019176,2]
[320625312,1711479032110,-156.68673277,0.00019176,2]
[320625313,1711479032119,-155.77267957,0.00019176,2]
[320625314,1711479032128,-214.6895479,0.00019176,2]
[320625315,1711479032138,-2748.94845609,0.00019176,2]
[320625316,1711479032147,-187.78507347,0.00019177,2]
[320625317,1711479032156,-3152.28655529,0.00019177,2]
[320625318,1711479032165,-190.34583745,0.00019178,2]
[320625319,1711479032175,-261.69564249,0.00019178,2]
[320625320,1711479032184,-500.0,0.00019178,2]
[320625321,1711479032193,-500.0,0.00019178,2]
[320625322,1711479032203,-500.0,0.00019178,2]
[320625323,1711479032212,-476.7421361,0.00019178,2]
[320625324,1711479032221,-500.0,0.00019178,2]
[320625325,1711479032230,-393.60791416,0.00019178,2]
[320625326,1711479032239,-500.0,0.00019178,2]
[320625327,1711479032249,-500.0,0.00019178,2]
[320625328,1711479032258,-500.0,0.00019178,2]
[320625329,1711479032268,-500.0,0.00019178,2]
[320625330,1711479032278,-500.0,0.00019178,2]
[320625331,1711479032287,-366.34385927,0.00019178,2]
[320625332,1711479032296,-410.14074391,0.00019178,2]
[320625333,1711479032305,-183.23912447,0.00019178,2]
[320625334,1711479032315,-171.60314295,0.00019178,2]
[320625335,1711479032326,-180.65382391,0.00019178,2]
[320625336,1711479032336,-500.0,0.00019178,2]
[320625337,1711479032345,-500.0,0.00019178,2]
[320625338,1711479032354,-500.0,0.00019178,2]
[320625339,1711479032363,-500.0,0.00019178,2]
[320625340,1711479032372,-500.0,0.00019178,2]
[320625341,1711479032381,-500.0,0.00019178,2]
[320625342,1711479032390,-500.0,0.00019178,2]
[320625343,1711479032399,-500.0,0.00019178,2]
[320625344,1711479032408,-500.0,0.00019178,2]
[320625345,1711479032417,-237.97088973,0.00019178,2]
[320625346,1711479032426,-752.26,0.00019178,2]
[320625347,1711479032437,-1029.08,0.00019178,2]
[320625348,1711479032446,-500.0,0.00019178,2]
[320625349,1711479032455,-500.0,0.00019178,2]
[320625350,1711479032464,-500.0,0.00019178,2]
[320625351,1711479032473,-500.0,0.00019178,2]
[320625352,1711479032483,-843.57,0.00019178,2]
[320625353,1711479032492,-500.0,0.00019178,2]
[320625354,1711479032504,-628.06565498,0.00019178,2]
[320625355,1711479032515,-200.09292218,0.00019178,2]
[320625356,1711479032528,-389.56707782,0.00019178,2]
[320625357,1711479032537,-7.60422053,0.00019178,2]
[320625385,1711479037880,-174.02744115,0.00019028,2]
[320625387,1711479037890,-174.02744115,0.00019078,2]
[320625389,1711479037899,-151.0,0.00019176,2]
[320625391,1711479037909,-492.39577947,0.00019178,2]
[320625393,1711479037918,-828.05,0.00019178,2]
[320625395,1711479037927,-500.0,0.00019178,2]
[320625397,1711479037936,-500.0,0.00019178,2]
[320625399,1711479037945,-500.0,0.00019178,2]
[320625401,1711479037954,-649.15212018,0.00019178,2]
[320625403,1711479037964,-500.0,0.00019178,2]
[320625405,1711479037973,-500.0,0.00019178,2]
[320625407,1711479037982,-500.0,0.00019178,2]
[320625409,1711479037991,-172.16836957,0.00019178,2]
[320625412,1711479038004,-484.87163043,0.00019178,2]
[320625414,1711479038013,-515.12836957,0.00019178,2]
[320625416,1711479038025,-247.42163043,0.00019178,2]
[320625419,1711479038035,-500.0,0.00019178,2]
[320625422,1711479038044,-847.61060247,0.00019178,2]
[320625625,1711479040015,-356.29939753,0.00019178,2]
[320625627,1711479040025,-500.0,0.00019178,2]
[320625629,1711479040035,-330.51682278,0.00019178,2]
[320625906,1711479043089,-169.48317722,0.00019178,2]
[320625907,1711479043099,-547.19,0.00019178,2]
[320625908,1711479043108,-304.68228769,0.00019178,2]
[320625909,1711479043120,-195.31771231,0.00019178,2]
[320625910,1711479043246,-500.0,0.00019178,2]
[320625911,1711479043256,-8.28063004,0.00019178,2]
[320625912,1711479043268,-268.24199987,0.00019178,2]
[320625913,1711479043284,-613.48737009,0.00019178,2]
[320625914,1711479043294,-500.0,0.00019178,2]
[320625915,1711479043304,-725.16,0.00019178,2]
[320625916,1711479043312,-500.0,0.00019178,2]
[320625917,1711479043321,-735.56,0.00019178,2]
[320625918,1711479043330,-451.3274442,0.00019178,2]
[320628888,1711479230971,2010.5616059,0.00017,2]
[320628889,1711479244633,5228.89081806,0.00015498,2]
[320628891,1711479269607,1098.81399264,0.000176,2]
[320628892,1711479269632,851.76569025,0.000176,2]
[320628893,1711479270565,377.85,0.00012,7]
[320628894,1711479274045,271.70957316,0.0001,2]
[320628897,1711479353031,250.0,0.00017627,2]
[320628899,1711479424244,212.8208828,0.00017627,2]
[320628900,1711479534015,683.328696,0.00017707,2]
[320628905,1711479613950,2838.8819504,0.00017756,2]
[320628907,1711479759297,204.49069,0.00017798,2]
[320628908,1711479937881,696.4099745,0.00017821,2]
[320628964,1711480232153,-155.00930056,0.00017938,2]
[320628966,1711480232163,-7432.61184397,0.00017939,2]
[320628967,1711480232173,-4308.80990328,0.0001794,2]
[320628969,1711480232185,-8397.07,0.0001794,2]
[320628970,1711480232196,-477.78328421,0.0001794,2]
[320628984,1711480238178,-4417.55339196,0.0001794,2]
[320629016,1711480240143,-4697.47619351,0.0001794,2]
[320629017,1711480240156,-791.2412369,0.00017941,2]
[320629018,1711480240166,-7359.38575588,0.00018,2]
[320629019,1711480240340,-289.8891548,0.00018458,2]
[320629020,1711480240355,-604.16762327,0.00018458,2]
[320629021,1711480240365,-2000.0,0.00018616,2]
[320629022,1711480240375,-3290.63156763,0.000189,2]
[320629023,1711480240384,-170.78445762,0.00018978,2]
[320629024,1711480240394,-153.0,0.00019,2]
[320629025,1711480240407,-153.0,0.00019,2]
[320629026,1711480240417,-153.0,0.00019,2]
[320629027,1711480240426,-153.0,0.00019,2]
[320629028,1711480240436,-153.0,0.00019,2]
[320629029,1711480240445,-153.0,0.00019,2]
[320629030,1711480240455,-306.0,0.00019,2]
[320629031,1711480240465,-153.0,0.00019,2]
[320629032,1711480240475,-153.0,0.00019,2]
[320629033,1711480240484,-153.0,0.00019,2]
[320629034,1711480240493,-153.0,0.00019,2]
[320629035,1711480240503,-153.0,0.00019,2]
[320629036,1711480240512,-153.0,0.00019,2]
[320629037,1711480240522,-153.0,0.00019,2]
[320629038,1711480240532,-153.0,0.00019,2]
[320629039,1711480240542,-13426.68545657,0.00019,2]
[320629040,1711480240553,-272.46061474,0.00019,2]
[320629041,1711480240563,-5612.27022103,0.00019,2]
[320629103,1711480243269,-10441.16545068,0.00019,2]
[320629105,1711480243279,-170.7844576,0.00019028,2]
[320629107,1711480243288,-319.79247082,0.00019075,2]
[320629109,1711480243298,-307.60254536,0.00019075,2]
[320629111,1711480243307,-1098.78327172,0.00019075,2]
[320629113,1711480243316,-161.67467223,0.00019076,2]
[320629115,1711480243325,-214.6895479,0.00019076,2]
[320629116,1711480243334,-931.91632762,0.00019076,2]
[320629118,1711480243344,-3443.12849161,0.00019076,2]
[320629120,1711480243354,-209.33185769,0.00019076,2]
[320629122,1711480243364,-435.18188624,0.00019076,2]
[320629124,1711480243373,-2334.94756947,0.00019077,2]
[320629127,1711480243383,-170.7844576,0.00019078,2]
[320629129,1711480243393,-68417.72480579,0.00019078,2]
[320629371,1711480246250,-211.50353569,0.00018999,2]
[320629373,1711480246260,-3152.28655529,0.00018999,2]
[320629375,1711480246270,-4101.86542512,0.00019078,2]
[320629377,1711480246280,-153.0,0.000191,2]
[320629379,1711480246290,-153.0,0.000191,2]
[320629381,1711480246299,-153.0,0.000191,2]
[320629383,1711480246309,-153.0,0.000191,2]
[320629385,1711480246318,-153.0,0.000191,2]
[320629387,1711480246327,-153.0,0.000191,2]
[320629389,1711480246336,-153.0,0.000191,2]
[320629391,1711480246347,-153.0,0.000191,2]
[320629393,1711480246357,-153.0,0.000191,2]
[320629395,1711480246367,-153.0,0.000191,2]
[320629397,1711480246377,-153.0,0.000191,2]
[320629399,1711480246386,-153.0,0.000191,2]
[320629401,1711480246396,-153.0,0.000191,2]
[320629403,1711480246408,-153.0,0.000191,2]
[320629405,1711480246418,-153.0,0.000191,2]
[320629407,1711480246428,-208.654261,0.000191,2]
[320629409,1711480246437,-153.0,0.000191,2]
[320629411,1711480246447,-153.0,0.000191,2]
[320629413,1711480246456,-306.0,0.000191,2]
[320629415,1711480246466,-960.6760564,0.000191,2]
[320629417,1711480246476,-153.0,0.000191,2]
[320629419,1711480246486,-153.0,0.000191,2]
[320629421,1711480246495,-153.0,0.000191,2]
[320629423,1711480246505,-153.0,0.000191,2]
[320629425,1711480246515,-153.0,0.000191,2]
[320629427,1711480246524,-153.0,0.000191,2]
[320629429,1711480246534,-153.0,0.000191,2]
[320629431,1711480246543,-153.0,0.000191,2]
[320629433,1711480246552,-153.0,0.000191,2]
[320629435,1711480246562,-153.0,0.000191,2]
[320629437,1711480246571,-153.0,0.000191,2]
[320629439,1711480246581,-306.0,0.000191,2]
[320629441,1711480246590,-153.0,0.000191,2]
[320629443,1711480246599,-153.0,0.000191,2]
[320629445,1711480246609,-153.0,0.000191,2]
[320629447,1711480246619,-153.0,0.000191,2]
[320629449,1711480246628,-153.0,0.000191,2]
[320629450,1711480246637,-153.0,0.000191,2]
[320629452,1711480246646,-153.0,0.000191,2]
[320629454,1711480246660,-181.341903,0.000191,2]
[320629456,1711480246669,-153.0,0.000191,2]
[320629458,1711480246680,-153.0,0.000191,2]
[320629460,1711480246690,-153.0,0.000191,2]
[320629462,1711480246699,-153.0,0.000191,2]
[320629464,1711480246709,-153.0,0.000191,2]
[320629466,1711480246721,-153.0,0.000191,2]
[320629468,1711480246731,-153.0,0.000191,2]
[320629470,1711480246741,-153.0,0.000191,2]
[320629472,1711480246750,-153.0,0.000191,2]
[320629474,1711480246760,-153.0,0.000191,2]
[320629476,1711480246769,-153.0,0.000191,2]
[320629478,1711480246780,-153.0,0.000191,2]
[320629480,1711480246790,-153.0,0.000191,2]
[320629482,1711480246800,-153.0,0.000191,2]
[320629484,1711480246809,-153.0,0.000191,2]
[320629486,1711480246821,-153.0,0.000191,2]
[320629488,1711480246830,-153.0,0.000191,2]
[320629490,1711480246841,-153.0,0.000191,2]
[320629491,1711480246852,-153.0,0.000191,2]
[320629493,1711480246861,-153.0,0.000191,2]
[320629495,1711480246871,-153.0,0.000191,2]
[320629497,1711480246881,-307.2750513,0.000191,2]
[320629499,1711480246891,-153.0,0.000191,2]
[320629501,1711480246901,-425.57817946,0.00019176,2]
[320629503,1711480246917,-355.50926517,0.00019177,2]
[320629505,1711480246926,-500.0,0.00019178,2]
[320629507,1711480246936,-500.0,0.00019178,2]
[320629509,1711480246946,-500.0,0.00019178,2]
[320629511,1711480246955,-511.03,0.00019178,2]
[320629513,1711480246964,-500.0,0.00019178,2]
[320629515,1711480246973,-719.07,0.00019178,2]
[320629517,1711480246982,-630.34,0.00019178,2]
[320629519,1711480246991,-121.14489929,0.00019178,2]
[320630028,1711480258955,259.84517652,0.00019177,60]
[320630051,1711480502382,151.00906054,0.00019622,30]
[320630052,1711480562219,500.0,0.00021917,30]
[320630053,1711480562834,259.15378988,0.00021917,30]
[320630054,1711480745651,204.49069,0.000178,2]
[320630084,1711481236035,5786.10185289,0.000178,2]
[320630085,1711481236061,12000.0,0.000178,2]
[320630086,1711481236086,1283.3136568,0.000178,2]
[320630088,1711481237816,5172.41504345,0.00017622,2]
[320630089,1711481237929,260.7075169,0.000178,2]
[320630090,1711481238798,250.68884351,0.00015261,2]
[320630091,1711481238846,155.00930056,0.000178,2]
[320630092,1711481239880,500.0,0.000178,2]
[320630093,1711481239926,155.00930056,0.000178,2]
[320630095,1711481243856,156.08999924,0.000178,2]
[320630096,1711481244782,4066.76633898,0.000178,2]
[320630097,1711481244806,882.0,0.000178,2]
[320630098,1711481244830,882.0,0.000178,2]
[320630099,1711481244854,882.0,0.000178,2]
[320630100,1711481244879,882.0,0.000178,2]
[320630101,1711481244903,882.0,0.000178,2]
[320630102,1711481244941,407.59405103,0.000178,2]
[320630103,1711481244992,691.06990888,0.000178,2]
[320630104,1711481246203,313.08414454,0.000178,2]
[320630105,1711481250808,2704.28208206,0.000178,2]
[320630108,1711481254073,7510.23806769,0.000178,2]
[320630109,1711481255783,-281.16717003,0.00018097,2]
[320630110,1711481255812,-1957.2415856,0.00018097,2]
[320630111,1711481255842,-187.46769589,0.00018122,2]
[320630112,1711481255871,-6193.84320331,0.00018885,2]
[320630113,1711481255901,-2000.0,0.00018887,2]
[320630114,1711481255930,-1501.93758334,0.00019,2]
[320630115,1711481255961,-194.85675765,0.00019,2]
[320630116,1711481255992,-155.14739002,0.00019076,2]
[320630117,1711481256022,-210.40624973,0.00019077,2]
[320630118,1711481256051,-2605.4070795,0.00019077,2]
[320630119,1711481256081,-136130.0600742,0.00019078,2]
[320630120,1711481256110,-960.6760564,0.000191,2]
[320630121,1711481256140,-987.38885002,0.00019174,2]
[320630122,1711481256170,-214.6895479,0.00019175,2]
[320630123,1711481256200,-29752.58174302,0.00019176,2]
[320630124,1711481256229,-237.05405564,0.00019176,2]
[320630125,1711481256263,-156.68673277,0.00019177,2]
[320630126,1711481256293,-2748.94845609,0.00019177,2]
[320630127,1711481256322,-205.33441189,0.00019177,2]
[320630128,1711481256355,-155.77267957,0.00019177,2]
[320630129,1711481256391,-187.78507347,0.00019177,2]
[320630130,1711481256423,-500.0,0.00019178,2]
[320630131,1711481256455,-500.0,0.00019178,2]
[320630132,1711481256487,-500.0,0.00019178,2]
[320630133,1711481256628,-500.0,0.00019178,2]
[320630134,1711481256660,-500.0,0.00019178,2]
[320630135,1711481256690,-258.76762613,0.00019178,2]
[320630136,1711481256723,-500.0,0.00019178,2]
[320630137,1711481256752,-500.0,0.00019178,2]
[320630138,1711481256783,-319.71477659,0.00019178,2]
[320630139,1711481256812,-159.98126057,0.00019178,2]
[320630140,1711481256841,-500.0,0.00019178,2]
[320630141,1711481256871,-500.0,0.00019178,2]
[320630142,1711481256900,-500.0,0.00019178,2]
[320630143,1711481256929,-500.0,0.00019178,2]
[320630144,1711481256959,-500.0,0.00019178,2]
[320630145,1711481256987,-239.62765123,0.00019178,2]
[320630146,1711481257016,-180.65382391,0.00019178,2]
[320630147,1711481257045,-500.0,0.00019178,2]
[320630148,1711481257074,-500.0,0.00019178,2]
[320630149,1711481257104,-500.0,0.00019178,2]
[320630150,1711481257133,-500.0,0.00019178,2]
[320630151,1711481257160,-500.0,0.00019178,2]
[320630152,1711481257193,-500.0,0.00019178,2]
[320630153,1711481257222,-500.0,0.00019178,2]
[320630154,1711481257250,-961.33,0.00019178,2]
[320630155,1711481257280,-500.0,0.00019178,2]
[320630156,1711481257310,-500.0,0.00019178,2]
[320630157,1711481257341,-355.47246553,0.00019178,2]
[320630158,1711481257460,155.00930056,0.000178,2]
[320630159,1711481259906,500.0,0.000178,2]
[320630160,1711481263907,155.00930056,0.000178,2]
[320630161,1711481276875,156.50101989,0.000178,2]
[320630162,1711481281929,500.0,0.000178,2]
[320630163,1711481283955,155.40167427,0.000178,2]
[320630164,1711481303896,500.0,0.000178,2]
[320630165,1711481307838,578.78658384,0.00017622,2]
[320630166,1711481308083,8427.96422099,0.000178,2]
[320630167,1711481310719,4088.89994477,0.000178,2]
[320630168,1711481314200,313.2664882,0.000178,2]
[320630169,1711481321886,500.0,0.000178,2]
[320630170,1711481323881,153.33434653,0.00017999,7]
[320630171,1711481334199,313.02639622,0.000178,2]
[320630172,1711481337888,500.0,0.000178,2]
[320630173,1711481357881,500.0,0.000178,2]
[320630178,1711481377879,500.0,0.000178,2]
[320630179,1711481383299,281.16717003,0.00017799,2]
[320630180,1711481396056,500.0,0.000178,2]
[320630181,1711481413908,500.0,0.000178,2]
[320630182,1711481429921,500.0,0.000178,2]
[320630226,1711481432410,-3226.99230892,0.00019077,2]
[320630228,1711481432420,-65597.80252825,0.00019078,2]
[320630230,1711481432430,-408.7816033,0.00019176,2]
[320630232,1711481432440,-2059.53625727,0.00019177,2]
[320630233,1711481432450,-29752.58174302,0.00019177,2]
[320630235,1711481432460,-500.0,0.00019178,2]
[320630237,1711481432469,-800.27,0.00019178,2]
[320630239,1711481432479,-544.08,0.00019178,2]
[320630241,1711481432488,-500.0,0.00019178,2]
[320630242,1711481432497,-541.13,0.00019178,2]
[320630244,1711481432506,-500.0,0.00019178,2]
[320630246,1711481432516,-500.0,0.00019178,2]
[320630247,1711481432526,-500.0,0.00019178,2]
[320630249,1711481432536,-500.0,0.00019178,2]
[320630251,1711481432546,-500.0,0.00019178,2]
[320630252,1711481432555,-500.0,0.00019178,2]
[320630253,1711481432565,-500.0,0.00019178,2]
[320630254,1711481432574,-500.0,0.00019178,2]
[320630255,1711481432584,-642.20964942,0.00019178,2]
[320630256,1711481432593,-500.0,0.00019178,2]
[320630257,1711481432602,-500.0,0.00019178,2]
[320630258,1711481432611,-500.0,0.00019178,2]
[320630259,1711481432621,-500.0,0.00019178,2]
[320630260,1711481432630,-727.43,0.00019178,2]
[320630261,1711481432639,-500.0,0.00019178,2]
[320630262,1711481432649,-500.0,0.00019178,2]
[320630263,1711481432662,-500.0,0.00019178,2]
[320630264,1711481432672,-500.0,0.00019178,2]
[320630265,1711481432681,-500.0,0.00019178,2]
[320630266,1711481432690,-500.0,0.00019178,2]
[320630267,1711481432699,-526.87612181,0.00019178,2]
[320630268,1711481432709,-500.0,0.00019178,2]
[320630269,1711481432718,-500.0,0.00019178,2]
[320630270,1711481432727,-500.0,0.00019178,2]
[320630271,1711481432738,-500.0,0.00019178,2]
[320630272,1711481432747,-53.60571901,0.00019178,2]
[320630273,1711481432760,-429.6119563,0.00019178,2]
[320630305,1711481438304,-173.56587593,0.00019076,2]
[320630307,1711481438314,-173.56587593,0.00019078,2]
[320630309,1711481438323,-131.57232469,0.00019178,2]
[320630311,1711481438332,-84.53253149,0.00019178,2]
[320630313,1711481438345,-415.46746851,0.00019178,2]
[320630316,1711481438355,-61.75753149,0.00019178,2]
[320630318,1711481438367,-438.24246851,0.00019178,2]
[320630321,1711481438377,-500.0,0.00019178,2]
[320630324,1711481438387,-168.93094217,0.00019178,2]
[320630326,1711481438396,-500.0,0.00019178,2]
[320630328,1711481438406,-500.0,0.00019178,2]
[320630329,1711481438421,-671.4,0.00019178,2]
[320630331,1711481438431,-500.0,0.00019178,2]
[320630333,1711481438441,-500.0,0.00019178,2]
[320630336,1711481438452,-500.0,0.00019178,2]
[320630338,1711481438462,-500.0,0.00019178,2]
[320630340,1711481438474,-586.1,0.00019178,2]
[320630342,1711481438483,-484.72496775,0.00019178,2]
[320630540,1711481440392,-15.27503225,0.00019178,2]
[320630542,1711481440401,-500.0,0.00019178,2]
[320630544,1711481440410,-500.0,0.00019178,2]
[320630545,1711481440422,-184.72909755,0.00019178,2]
[320631441,1711481449897,500.0,0.000178,2]
[320632925,1711481466330,12481.2690041,0.00018213,2]
[320633360,1711481471899,500.0,0.000178,2]
[320633543,1711481473830,1687.1730458,0.00018213,2]
[320635010,1711481488606,3000.0,0.00018213,2]
[320635131,1711481489891,500.0,0.00018213,2]
[320635187,1711481507908,500.0,0.00018213,2]
[320635190,1711481527903,500.0,0.00018213,2]
[320635191,1711481547934,500.0,0.00018213,2]
[320635192,1711481567899,500.0,0.00018213,2]
[320635193,1711481587903,500.0,0.00018213,2]
[320635194,1711481606237,500.0,0.00018213,2]
[320635195,1711481614779,22322.0157516,0.00018153,2]
[320635196,1711481627914,500.0,0.00018213,2]
[320635197,1711481635120,24900.0,0.00018128,2]
[320635198,1711481643937,252.4800168,0.00018213,2]
[320635199,1711481756220,155.36079134,0.00018213,2]
[320635200,1711481827153,637.054145,0.00018114,2]
[320635201,1711481830154,250.0,0.00018114,2]
[320635202,1711481902168,-3226.99230892,0.00018897,2]
[320635203,1711481902200,-3637.61684452,0.00018898,2]
[320635204,1711481902232,-2711.22615829,0.000189,2]
[320635205,1711481902265,-207.33867025,0.00019077,2]
[320635206,1711481902297,-167.22332138,0.00019077,2]
[320635207,1711481902334,-16434.0,0.00019078,2]
[320635208,1711481902365,-960.6760564,0.000191,2]
[320635209,1711481902398,-1539.79390352,0.00019176,2]
[320635210,1711481902430,-20477.68373042,0.00019177,2]
[320635211,1711481926075,-3226.99230892,0.00019176,2]
[320635212,1711481926107,-9274.8980126,0.00019177,2]
[320635213,1711481926138,-500.0,0.00019178,2]
[320635214,1711481926169,-500.0,0.00019178,2]
[320635215,1711481926201,-500.0,0.00019178,2]
[320635216,1711481926234,-694.95,0.00019178,2]
[320635217,1711481926269,-500.0,0.00019178,2]
[320635218,1711481926301,-852.93,0.00019178,2]
[320635219,1711481926335,-226.36965028,0.00019178,2]
[320635220,1711481926367,-500.0,0.00019178,2]
[320635221,1711481926400,-500.0,0.00019178,2]
[320635222,1711481926433,-500.0,0.00019178,2]
[320635223,1711481926467,-500.0,0.00019178,2]
[320635224,1711481926499,-704.91,0.00019178,2]
[320635225,1711481926532,-500.0,0.00019178,2]
[320635226,1711481926566,-500.0,0.00019178,2]
[320635227,1711481926599,-500.0,0.00019178,2]
[320635228,1711481926634,-500.0,0.00019178,2]
[320635229,1711481926669,-500.0,0.00019178,2]
[320635230,1711481926701,-604.07,0.00019178,2]
[320635231,1711481926735,-500.0,0.00019178,2]
[320635232,1711481926769,-500.0,0.00019178,2]
[320635233,1711481926805,-689.11,0.00019178,2]
[320635234,1711481929943,-3060.39,0.00019178,2]
[320635235,1711481929974,-500.0,0.00019178,2]
[320635236,1711481930005,-500.0,0.00019178,2]
[320635237,1711481930041,-500.0,0.00019178,2]
[320635238,1711481930074,-500.0,0.00019178,2]
[320635239,1711481930107,-500.0,0.00019178,2]
[320635240,1711481930253,-500.0,0.00019178,2]
[320635241,1711481930291,-2175.39,0.00019178,2]
[320635242,1711481930326,-500.0,0.00019178,2]
[320635243,1711481930362,-500.0,0.00019178,2]
[320635244,1711481930397,-500.0,0.00019178,2]
[320635245,1711481930433,-500.0,0.00019178,2]
[320635246,1711481930468,-500.0,0.00019178,2]
[320635247,1711481930502,-500.0,0.00019178,2]
[320635248,1711481930535,-500.0,0.00019178,2]
[320635249,1711481930569,-500.0,0.00019178,2]
[320635250,1711481930601,-500.0,0.00019178,2]
[320635251,1711481930633,-500.0,0.00019178,2]
[320635252,1711481930667,-921.27,0.00019178,2]
[320635253,1711481930700,-500.0,0.00019178,2]
[320635254,1711481930733,-500.0,0.00019178,2]